fUST/lending_fUST_20251202
["ID","MTS","AMOUNT","RATE_DAILY","PERIOD"]
[395366288,1764671337981,-596.2938552,8.97e-05,2]
[395366289,1764671338002,-166.3203104,8.97e-05,2]
[395366290,1764671338027,-593.2409419,8.97e-05,2]
[395366291,1764671338050,-45346.8044559,9.019e-05,2]
[395366292,1764671338072,-244.604055,9.019e-05,2]
[395366293,1764671338094,-244.604055,9.019e-05,2]
[395366294,1764671338115,-244.604055,9.019e-05,2]
[395366295,1764671338135,-244.604055,9.019e-05,2]
[395366297,1764671368086,1001.20470569,9.019e-05,2]
[395366300,1764671373918,-596.2938552,9.041e-05,2]
[395366301,1764671373941,-603.3877412,9.041e-05,2]
[395366302,1764671373965,-596.2938552,9.05e-05,2]
[395366303,1764671373987,-165.0599978,9.09e-05,2]
[395366304,1764671374008,-1192.5877104,9.09e-05,2]
[395366305,1764671374029,-603.5831254,9.09e-05,2]
[395366306,1764671381095,-300.0,9.118e-05,2]
[395366307,1764671381117,-500.0,9.119e-05,2]
[395366308,1764671381141,-194.5046441,9.119e-05,2]
[395366309,1764671381163,-500.0,9.119e-05,2]
[395366310,1764671381186,-500.0,9.119e-05,2]
[395366311,1764671381208,-501.23935045,9.119e-05,2]
[395366312,1764671381231,-259.25,9.119e-05,2]
[395366313,1764671381253,-201.93286099,9.119e-05,2]
[395366314,1764671381276,-500.0,9.119e-05,2]
[395366315,1764671381299,-321.24730345,9.119e-05,2]
[395366316,1764671381322,-500.0,9.119e-05,2]
[395366317,1764671381346,-151.0,9.119e-05,2]
[395366318,1764671381370,-500.0,9.119e-05,2]
[395366319,1764671381391,-500.0,9.119e-05,2]
[395366320,1764671381413,-500.0,9.119e-05,2]
[395366321,1764671381435,-500.0,9.119e-05,2]
[395366322,1764671381458,-500.0,9.119e-05,2]
[395366323,1764671381480,-500.0,9.119e-05,2]
[395366324,1764671381502,-500.0,9.119e-05,2]
[395366325,1764671381523,-500.0,9.119e-05,2]
[395366326,1764671381547,-500.0,9.119e-05,2]
[395366327,1764671381570,-467.71610106,9.119e-05,2]
[395366328,1764671381591,-151.0,9.119e-05,2]
[395366329,1764671381614,-165.0599978,9.12e-05,2]
[395366330,1764671381640,-603.46858,9.12e-05,2]
[395366331,1764671381661,-596.2938552,9.12e-05,2]
[395366332,1764671381681,-301.7915627,9.12e-05,2]
[395366333,1764671381705,-596.2938552,9.16e-05,2]
[395366334,1764671381728,-397.0225846,9.21e-05,2]
[395366335,1764671381751,-22.85212566,9.21e-05,2]
[395366336,1764671399839,-142.20787214,9.21e-05,2]
[395366337,1764671399861,-397.0225846,9.21e-05,2]
[395366338,1764671399883,-596.2938552,9.21e-05,2]
[395366339,1764671399905,-792.7246984,9.21e-05,2]
[395366340,1764671399927,-301.7915627,9.22e-05,2]
[395366341,1764671399949,-874.0139162,9.22e-05,2]
[395366342,1764671399972,-165.0599978,9.22e-05,2]
[395366343,1764671399993,-301.7915627,9.22e-05,2]
[395366344,1764671400014,-397.0225846,9.22e-05,2]
[395366345,1764671400037,-596.2938552,9.22e-05,2]
[395366346,1764671400059,-301.7915627,9.22e-05,2]
[395366347,1764671400080,-596.2938552,9.22e-05,2]
[395366348,1764671400103,-165.0599978,9.22e-05,2]
[395366349,1764671400126,-204.45238006,9.256e-05,2]
[395366350,1764671400149,-151.0,9.279e-05,2]
[395366351,1764671400171,-151.0,9.279e-05,2]
[395366352,1764671400192,-151.0,9.279e-05,2]
[395366353,1764671400214,-272.79643717,9.279e-05,2]
[395366354,1764671400236,-151.0,9.279e-05,2]
[395366355,1764671400257,-500.0,9.279e-05,2]
[395366356,1764671400280,-171.62338099,9.279e-05,2]
[395366357,1764671400301,-500.0,9.33e-05,2]
[395366358,1764671400327,-151.0,9.33e-05,2]
[395366359,1764671400348,-151.0,9.33e-05,2]
[395366360,1764671400369,-500.0,9.33e-05,2]
[395366361,1764671400391,-151.0,9.332e-05,2]
[395366362,1764671400413,-151.0,9.332e-05,2]
[395366363,1764671400435,-261.89933889,9.332e-05,2]
[395366364,1764671400459,-151.0,9.332e-05,2]
[395366365,1764671400482,-151.0,9.332e-05,2]
[395366366,1764671400503,-151.24176772,9.332e-05,2]
[395366367,1764671400527,-244.604055,9.332e-05,2]
[395366368,1764671400551,-244.604055,9.332e-05,2]
[395366369,1764671400578,-244.604055,9.332e-05,2]
[395366370,1764671400603,-244.604055,9.332e-05,2]
[395366371,1764671400625,-500.0,9.416e-05,2]
[395366372,1764671400648,-4137.6035974,9.431e-05,2]
[395366373,1764671400670,-500.0,9.467e-05,2]
[395366374,1764671400692,-151.0,9.467e-05,2]
[395366375,1764671400714,-151.0,9.467e-05,2]
[395366376,1764671400734,-298.09863288,9.469e-05,2]
[395366377,1764671400756,-151.0,9.469e-05,2]
[395366378,1764671400778,-159.49543528,9.469e-05,2]
[395366379,1764671400800,-199.48523101,9.469e-05,2]
[395366380,1764671400822,-414.0,9.486e-05,2]
[395366381,1764671400851,152.32685488,9.279e-05,2]
[395366383,1764671401627,151.86558689,9.279e-05,2]
[395366385,1764671406944,198.0,9.416e-05,2]
[395366386,1764671407716,198.0,9.416e-05,2]
[395366387,1764671408518,151.0,9.416e-05,2]
[395366388,1764671410773,259.25,9.148e-05,2]
[395366389,1764671412193,194.91727392,9.148e-05,2]
[395366391,1764671416778,201.93286099,9.148e-05,2]
[395366392,1764671420902,-500.0,9.553e-05,2]
[395366393,1764671420925,-151.0,9.553e-05,2]
[395366394,1764671420947,-151.0,9.589e-05,2]
[395366395,1764671420968,-151.0,9.589e-05,2]
[395366396,1764671431127,500.0,8.952e-05,2]
[395366397,1764671431160,500.0,8.952e-05,2]
[395366398,1764671431196,500.0,8.952e-05,2]
[395366399,1764671431234,500.0,8.952e-05,2]
[395366400,1764671431264,500.0,8.952e-05,2]
[395366401,1764671431300,500.0,8.952e-05,2]
[395366402,1764671431344,500.0,8.952e-05,2]
[395366406,1764671431390,500.0,8.952e-05,2]
[395366409,1764671431447,500.0,8.952e-05,2]
[395366411,1764671431484,500.0,8.952e-05,2]
[395366437,1764671431918,-151.0,9.606e-05,2]
[395366438,1764671431927,-500.0,9.69e-05,2]
[395366439,1764671431937,-198.98646197,9.69e-05,2]
[395366440,1764671431947,-209.40437684,9.696e-05,2]
[395366441,1764671431956,-233.75683713,9.743e-05,2]
[395366442,1764671431965,-997.53833379,9.787e-05,2]
[395366443,1764671434829,181.83475347,8.952e-05,2]
[395366456,1764671439984,-202.46166621,9.787e-05,2]
[395366457,1764671439995,-387.8896158,9.788e-05,2]
[395366458,1764671440028,80674.49247812,8.853e-05,2]
[395366459,1764671440053,5000.01,8.853e-05,2]
[395366460,1764671440077,10000.01,8.853e-05,2]
[395366461,1764671440102,10000.01,8.853e-05,2]
[395366462,1764671440126,10000.01,8.853e-05,2]
[395366463,1764671440151,10000.01,8.853e-05,2]
[395366464,1764671440174,10000.01,8.853e-05,2]
[395366466,1764671440198,10000.01,8.853e-05,2]
[395366467,1764671440220,10000.01,8.853e-05,2]
[395366468,1764671440244,10000.01,8.853e-05,2]
[395366469,1764671440267,10000.01,8.853e-05,2]
[395366470,1764671440291,10000.01,8.853e-05,2]
[395366471,1764671440314,10000.01,8.853e-05,2]
[395366472,1764671440337,10000.01,8.853e-05,2]
[395366473,1764671440360,10000.01,8.853e-05,2]
[395366474,1764671440384,10000.01,8.853e-05,2]
[395366483,1764671443270,-30000.0,8.853e-05,2]
[395366487,1764671452366,-1513.24810086,8.853e-05,2]
[395366562,1764671531343,-300.0,8.675e-05,2]
[395366563,1764671560773,-172.821,8.676e-05,2]
[395366628,1764671637023,300.0,8.675e-05,2]
[395366636,1764671659192,300.0,8.675e-05,2]
[395366637,1764671667306,300.0,8.675e-05,2]
[395366689,1764671692368,219.49644798,8.632e-05,2]
[395366699,1764671703468,-219.49644798,8.719e-05,2]
[395366700,1764671708038,219.49644798,8.719e-05,2]
[395366701,1764671716015,219.49644798,8.719e-05,2]
[395366702,1764671751691,-219.49644798,8.632e-05,2]
[395366703,1764671761768,219.49644798,8.632e-05,2]
[395366705,1764671767596,-219.49644798,8.719e-05,2]
[395366713,1764671777009,219.49644798,8.719e-05,2]
[395366717,1764671785233,219.49644798,8.719e-05,2]
[395366720,1764671796098,964.139243,7.904e-05,2]
[395366721,1764671800721,219.49644798,8.719e-05,2]
[395366725,1764671831473,-219.49644798,8.632e-05,2]
[395366726,1764671831502,-219.49644798,8.719e-05,2]
[395366727,1764671846166,219.49644798,8.719e-05,2]
[395366728,1764671854506,219.49644798,8.719e-05,2]
[395366734,1764671881737,-219.49644798,8.632e-05,2]
[395366735,1764671881769,-219.49644798,8.719e-05,2]
[395366736,1764671893603,219.49644798,8.719e-05,2]
[395366737,1764671901391,219.49644798,8.719e-05,2]
[395366738,1764671942265,250.0,0.0002,30]
[395366742,1764671942461,-219.49644798,8.632e-05,2]
[395366744,1764671947515,219.49644798,8.632e-05,2]
[395366747,1764671960190,-219.49644798,8.719e-05,2]
[395366750,1764671963665,219.49644798,8.632e-05,2]
[395366752,1764671972305,219.49644798,8.676e-05,2]
[395366754,1764671987243,219.49644798,8.676e-05,2]
[395366758,1764672007760,-219.49644798,8.676e-05,2]
[395366759,1764672010601,219.49644798,8.676e-05,2]
[395366760,1764672018461,219.49644798,8.676e-05,2]
[395366761,1764672034147,219.49644798,8.676e-05,2]
[395366763,1764672056654,219.49644798,8.676e-05,2]
[395366769,1764672079106,219.49644798,8.676e-05,2]
[395366780,1764672101803,219.49644798,8.676e-05,2]
[395366781,1764672102961,172.821,8.676e-05,2]
[395366789,1764672124934,219.49644798,8.676e-05,2]
[395366822,1764672147543,219.49644798,8.676e-05,2]
[395366864,1764672170587,219.49644798,8.676e-05,2]
[395366867,1764672193169,219.49644798,8.676e-05,2]
[395366870,1764672216361,219.49644798,8.676e-05,2]
[395366874,1764672239271,219.49644798,8.676e-05,2]
[395366879,1764672262792,219.49644798,8.676e-05,2]
[395366981,1764672470020,169.824142,3.926e-05,2]
[395366982,1764672470213,169.824142,5.889e-05,2]
[395366983,1764672470411,169.824142,7.852e-05,2]
[395367009,1764672478783,1200.0,8.664e-05,2]
[395367014,1764672489002,-1200.0,8.752e-05,2]
[395367015,1764672489038,-300.0,8.752e-05,2]
[395367016,1764672489542,-6314.95186238,8.753e-05,2]
[395367017,1764672489688,-10000.01,8.753e-05,2]
[395367018,1764672489940,-10000.01,8.753e-05,2]
[395367019,1764672490193,-10000.01,8.753e-05,2]
[395367020,1764672490469,-10000.01,8.753e-05,2]
[395367021,1764672490712,-10000.01,8.753e-05,2]
[395367022,1764672490998,-10000.01,8.753e-05,2]
[395367023,1764672491224,-10000.01,8.753e-05,2]
[395367024,1764672491453,-10000.01,8.753e-05,2]
[395367032,1764672502960,-10000.01,8.665e-05,2]
[395367033,1764672503147,-10000.01,8.665e-05,2]
[395367034,1764672503411,-10000.01,8.665e-05,2]
[395367035,1764672518827,-1536.83745114,8.578e-05,2]
[395367036,1764672518863,-6926.33509772,8.665e-05,2]
[395367037,1764672519077,-3498.65002964,8.665e-05,2]
[395367038,1764672519112,-3002.70994072,8.753e-05,2]
[395367039,1764672519280,-10000.01,8.753e-05,2]
[395367040,1764672519819,-10000.01,8.753e-05,2]
[395367041,1764672519832,-10000.01,8.753e-05,2]
[395367044,1764672531728,-4303.67723172,8.665e-05,2]
[395367045,1764672531750,-1392.65553656,8.665e-05,2]
[395367046,1764672531945,-10000.01,8.753e-05,2]
[395367048,1764672542734,162.65,1e-05,2]
[395367049,1764672542996,162.65,1.1e-05,2]
[395367050,1764672543236,162.65,1.3e-05,2]
[395367051,1764672543577,162.65,1.4e-05,2]
[395367052,1764672543873,162.65,1.6e-05,2]
[395367057,1764672558290,162.65,1.7e-05,2]
[395367058,1764672558606,162.65,1.9e-05,2]
[395367059,1764672558929,162.65,2e-05,2]
[395367060,1764672565794,-349.92834926,8.407e-05,2]
[395367061,1764672565826,-349.92834926,8.492e-05,2]
[395367062,1764672565862,-2130.31698715,8.578e-05,2]
[395367063,1764672565896,-300.0,8.751e-05,2]
[395367064,1764672565929,-500.0,8.752e-05,2]
[395367065,1764672565967,-500.0,8.752e-05,2]
[395367066,1764672565999,-500.0,8.752e-05,2]
[395367067,1764672566034,-239.66262866,8.752e-05,2]
[395367068,1764672566183,-260.33737134,8.752e-05,2]
[395367069,1764672566222,-500.0,8.752e-05,2]
[395367070,1764672566256,-500.0,8.752e-05,2]
[395367071,1764672566290,-500.0,8.752e-05,2]
[395367072,1764672566326,-500.0,8.752e-05,2]
[395367073,1764672566363,-500.0,8.752e-05,2]
[395367074,1764672566398,-500.0,8.752e-05,2]
[395367075,1764672566431,-500.0,8.752e-05,2]
[395367076,1764672566465,-529.97039605,8.752e-05,2]
[395367077,1764672566500,-500.0,8.752e-05,2]
[395367078,1764672566595,-500.0,8.752e-05,2]
[395367079,1764672566631,-500.0,8.752e-05,2]
[395367080,1764672566669,-500.0,8.752e-05,2]
[395367081,1764672566705,-411.93351445,8.752e-05,2]
[395367082,1764672566744,-500.0,8.752e-05,2]
[395367083,1764672566783,-500.0,8.752e-05,2]
[395367084,1764672566822,-500.0,8.752e-05,2]
[395367085,1764672566859,-500.0,8.752e-05,2]
[395367086,1764672566895,-500.0,8.752e-05,2]
[395367087,1764672566935,-500.0,8.752e-05,2]
[395367088,1764672567023,-500.0,8.752e-05,2]
[395367089,1764672567061,-500.0,8.752e-05,2]
[395367090,1764672567098,-500.0,8.752e-05,2]
[395367091,1764672567297,-500.0,8.752e-05,2]
[395367092,1764672567335,-500.0,8.752e-05,2]
[395367093,1764672567372,-500.0,8.752e-05,2]
[395367094,1764672567408,-500.0,8.752e-05,2]
[395367095,1764672567447,-500.0,8.752e-05,2]
[395367096,1764672567487,-500.0,8.752e-05,2]
[395367097,1764672567521,-500.0,8.752e-05,2]
[395367098,1764672567641,-500.0,8.752e-05,2]
[395367099,1764672567677,-500.0,8.752e-05,2]
[395367100,1764672567715,-500.0,8.752e-05,2]
[395367101,1764672567753,-500.0,8.752e-05,2]
[395367102,1764672567791,-500.0,8.752e-05,2]
[395367103,1764672567828,-500.0,8.752e-05,2]
[395367104,1764672567864,-500.0,8.752e-05,2]
[395367105,1764672567902,-500.0,8.752e-05,2]
[395367106,1764672567945,-176.11840414,8.752e-05,2]
[395367107,1764672567985,-500.0,8.752e-05,2]
[395367108,1764672568024,-147.77319172,8.752e-05,2]
[395367109,1764672568884,-91.69991797,8.752e-05,2]
[395367110,1764672568900,-176.11840414,8.752e-05,2]
[395367111,1764672568917,-84.40848617,8.752e-05,2]
[395367112,1764672568931,-415.59151383,8.752e-05,2]
[395367113,1764672568951,-84.40848617,8.752e-05,2]
[395367114,1764672568963,-415.59151383,8.752e-05,2]
[395367116,1764672594353,-838.61383002,8.491e-05,2]
[395367117,1764672594387,-575.39897078,8.577e-05,2]
[395367118,1764672594422,-7171.9843984,8.577e-05,2]
[395367119,1764672594837,-2252.62663082,8.664e-05,2]
[395367120,1764672594861,-5494.75673836,8.664e-05,2]
[395367125,1764672602226,157.94,1e-05,2]
[395367126,1764672602804,157.94,1.1e-05,2]
[395367127,1764672602987,157.94,1.2e-05,2]
[395367128,1764672603637,157.94,1.2e-05,2]
[395367129,1764672603718,157.94,1.3e-05,2]
[395367130,1764672604053,157.94,1.4e-05,2]
[395367131,1764672604186,-206.76552777,8.661e-05,2]
[395367132,1764672604216,-628.50713154,8.664e-05,2]
[395367133,1764672604245,-300.0,8.751e-05,2]
[395367134,1764672604273,-300.0,8.751e-05,2]
[395367135,1764672604305,-300.0,8.751e-05,2]
[395367136,1764672604335,-232.92506865,8.752e-05,2]
[395367137,1764672604457,-6063.61454408,8.753e-05,2]
[395367138,1764672604496,157.94,1.5e-05,2]
[395367139,1764672604536,-10000.01,8.753e-05,2]
[395367140,1764672604791,157.94,1.5e-05,2]
[395367141,1764672604900,-10000.01,8.753e-05,2]
[395367142,1764672605132,157.94,1.6e-05,2]
[395367143,1764672605435,157.94,1.7e-05,2]
[395367144,1764672605740,157.94,1.8e-05,2]
[395367145,1764672606149,157.94,1.8e-05,2]
[395367146,1764672606565,157.94,1.9e-05,2]
[395367147,1764672606876,157.94,2e-05,2]
[395367164,1764672632097,-841.6034007,8.577e-05,2]
[395367165,1764672632108,-658.3965993,8.577e-05,2]
[395367166,1764672632117,-752.32848459,8.664e-05,2]
[395367168,1764672632154,-747.67151541,8.664e-05,2]
[395367169,1764672632163,-998.80143827,8.752e-05,2]
[395367170,1764672632173,-300.0,8.752e-05,2]
[395367171,1764672632183,-1200.0,8.752e-05,2]
[395367172,1764672632192,-102744.26752561,8.753e-05,2]
[395367318,1764672639570,-614.20723324,8.491e-05,2]
[395367321,1764672639607,-8771.59553352,8.753e-05,2]
[395367327,1764672639941,-10000.01,8.753e-05,2]
[395367394,1764672646229,-614.20723324,8.406e-05,2]
[395367395,1764672646239,-30975.87935054,8.753e-05,2]
[395367396,1764672650275,-10000.01,8.753e-05,2]
[395367397,1764672654740,-2732.14657493,8.665e-05,2]
[395367398,1764672662664,157.94,1e-05,2]
[395367399,1764672662989,157.94,1.1e-05,2]
[395367400,1764672663311,157.94,1.2e-05,2]
[395367401,1764672663615,157.94,1.2e-05,2]
[395367402,1764672663970,157.94,1.3e-05,2]
[395367403,1764672664253,157.94,1.4e-05,2]
[395367404,1764672664573,157.94,1.5e-05,2]
[395367405,1764672664873,157.94,1.5e-05,2]
[395367406,1764672665178,157.94,1.6e-05,2]
[395367407,1764672665500,157.94,1.7e-05,2]
[395367408,1764672665984,157.94,1.8e-05,2]
[395367409,1764672666126,157.94,1.8e-05,2]
[395367410,1764672666442,157.94,1.9e-05,2]
[395367411,1764672666526,2482.49685014,8.665e-05,2]
[395367412,1764672666550,10000.01,8.665e-05,2]
[395367413,1764672666573,10000.01,8.665e-05,2]
[395367414,1764672666598,10000.01,8.665e-05,2]
[395367415,1764672666620,10000.01,8.665e-05,2]
[395367416,1764672666642,10000.01,8.665e-05,2]
[395367417,1764672666664,3557.12654441,8.665e-05,2]
[395367418,1764672666863,157.94,2e-05,2]
[395367420,1764672674427,300.0,8.664e-05,2]
[395367421,1764672682523,177.86864783,8.664e-05,2]
[395367422,1764672690498,300.0,8.664e-05,2]
[395367423,1764672702981,336.491,8.578e-05,2]
[395367424,1764672714512,300.0,8.577e-05,2]
[395367426,1764672722688,157.94,1e-05,2]
[395367427,1764672723210,157.94,1.1e-05,2]
[395367428,1764672723736,157.94,1.2e-05,2]
[395367429,1764672723858,157.94,1.2e-05,2]
[395367430,1764672724123,157.94,1.3e-05,2]
[395367431,1764672724427,157.94,1.4e-05,2]
[395367432,1764672724726,157.94,1.5e-05,2]
[395367433,1764672725047,157.94,1.5e-05,2]
[395367434,1764672725359,157.94,1.6e-05,2]
[395367435,1764672725654,157.94,1.7e-05,2]
[395367436,1764672725953,157.94,1.8e-05,2]
[395367437,1764672726347,157.94,1.8e-05,2]
[395367438,1764672726671,157.94,1.9e-05,2]
[395367439,1764672726974,157.94,2e-05,2]
[395367440,1764672737173,300.0,8.577e-05,2]
[395367441,1764672753670,2155.8325588,7.897e-05,2]
[395367442,1764672759359,300.0,8.577e-05,2]
[395367445,1764672782289,157.94,1e-05,2]
[395367446,1764672782584,157.94,1.1e-05,2]
[395367447,1764672782904,157.94,1.2e-05,2]
[395367448,1764672783306,157.94,1.2e-05,2]
[395367449,1764672783605,157.94,1.3e-05,2]
[395367450,1764672783923,157.94,1.4e-05,2]
[395367451,1764672784218,157.94,1.5e-05,2]
[395367452,1764672784510,157.94,1.5e-05,2]
[395367453,1764672784830,157.94,1.6e-05,2]
[395367454,1764672785136,157.94,1.7e-05,2]
[395367455,1764672785434,157.94,1.8e-05,2]
[395367456,1764672786363,157.94,1.8e-05,2]
[395367457,1764672786720,157.94,1.9e-05,2]
[395367458,1764672797617,157.94,2e-05,2]
[395367460,1764672819388,161.0,5.5e-07,2]
[395367462,1764672842677,157.94,1e-05,2]
[395367464,1764672843024,157.94,1.1e-05,2]
[395367465,1764672843355,157.94,1.2e-05,2]
[395367466,1764672843670,157.94,1.2e-05,2]
[395367467,1764672844001,157.94,1.3e-05,2]
[395367468,1764672844316,157.94,1.4e-05,2]
[395367469,1764672844648,157.94,1.5e-05,2]
[395367470,1764672845321,157.94,1.5e-05,2]
[395367471,1764672845360,157.94,1.6e-05,2]
[395367472,1764672845608,157.94,1.7e-05,2]
[395367475,1764672845902,157.94,1.8e-05,2]
[395367476,1764672846211,157.94,1.8e-05,2]
[395367477,1764672846541,129.0864412,1.9e-05,2]
[395367478,1764672846564,28.8535588,1.9e-05,2]
[395367479,1764672846841,157.94,2e-05,2]
[395367489,1764672895993,300.0,8.577e-05,2]
[395367492,1764672902853,157.94,1e-05,2]
[395367493,1764672903438,157.94,1.1e-05,2]
[395367494,1764672903477,250.0,0.0002,30]
[395367495,1764672903525,157.94,1.2e-05,2]
[395367497,1764672903893,157.94,1.2e-05,2]
[395367498,1764672904241,157.94,1.3e-05,2]
[395367499,1764672904538,157.94,1.4e-05,2]
[395367500,1764672904897,157.94,1.5e-05,2]
[395367501,1764672905220,157.94,1.5e-05,2]
[395367502,1764672905530,157.94,1.6e-05,2]
[395367503,1764672905852,157.94,1.7e-05,2]
[395367504,1764672906195,157.94,1.8e-05,2]
[395367505,1764672906529,157.94,1.8e-05,2]
[395367506,1764672906889,157.94,1.9e-05,2]
[395367507,1764672907175,157.94,2e-05,2]
[395367513,1764672962317,157.94,1e-05,2]
[395367514,1764672962630,157.94,1.1e-05,2]
[395367515,1764672963011,157.94,1.2e-05,2]
[395367516,1764672963343,157.94,1.2e-05,2]
[395367517,1764672963645,157.94,1.3e-05,2]
[395367518,1764672964050,157.94,1.4e-05,2]
[395367519,1764672964368,157.94,1.5e-05,2]
[395367520,1764672964676,157.94,1.5e-05,2]
[395367521,1764672965612,157.94,1.6e-05,2]
[395367522,1764672965963,157.94,1.7e-05,2]
[395367523,1764672979429,157.94,1.8e-05,2]
[395367525,1764672979814,157.94,1.8e-05,2]
[395367526,1764672980548,157.94,1.9e-05,2]
[395367527,1764672980585,157.94,2e-05,2]
[395367530,1764673022658,157.94,1e-05,2]
[395367531,1764673022711,157.94,1.1e-05,2]
[395367532,1764673023033,157.94,1.2e-05,2]
[395367533,1764673023354,157.94,1.2e-05,2]
[395367534,1764673023667,157.94,1.3e-05,2]
[395367535,1764673023997,157.94,1.4e-05,2]
[395367536,1764673024311,157.94,1.5e-05,2]
[395367537,1764673024622,157.94,1.5e-05,2]
[395367538,1764673024958,157.94,1.6e-05,2]
[395367539,1764673025429,157.94,1.7e-05,2]
[395367540,1764673025860,157.94,1.8e-05,2]
[395367541,1764673026217,157.94,1.8e-05,2]
[395367542,1764673027343,157.94,1.9e-05,2]
[395367543,1764673027733,157.94,2e-05,2]
[395367654,1764673060270,702.68964745,8.576e-05,2]
[395367679,1764673082287,157.94,1e-05,2]
[395367680,1764673082320,207.95110937,8.576e-05,2]
[395367681,1764673082589,157.94,1.1e-05,2]
[395367682,1764673082976,157.94,1.2e-05,2]
[395367683,1764673083305,157.94,1.2e-05,2]
[395367684,1764673083596,157.94,1.3e-05,2]
[395367685,1764673083882,157.94,1.4e-05,2]
[395367686,1764673084465,157.94,1.5e-05,2]
[395367687,1764673084583,157.94,1.5e-05,2]
[395367688,1764673084892,157.94,1.6e-05,2]
[395367689,1764673085193,157.94,1.7e-05,2]
[395367690,1764673085495,157.94,1.8e-05,2]
[395367691,1764673085834,157.94,1.8e-05,2]
[395367692,1764673086157,73.81568438,1.9e-05,2]
[395367693,1764673086183,84.12431562,1.9e-05,2]
[395367694,1764673086460,157.94,2e-05,2]
[395367695,1764673104912,207.95110937,8.576e-05,2]
[395367696,1764673113630,2100.0,8.576e-05,2]
[395367697,1764673128870,396.84587211,8.578e-05,2]
[395367698,1764673133373,5146.0,0.0002,30]
[395367699,1764673136801,396.84587211,8.578e-05,2]
[395367700,1764673141933,152.19,1e-05,2]
[395367701,1764673142231,152.19,1.1e-05,2]
[395367702,1764673142506,166.62236317,8.578e-05,2]
[395367703,1764673144107,152.19,1.3e-05,2]
[395367704,1764673144278,152.19,1.4e-05,2]
[395367705,1764673144587,152.19,1.6e-05,2]
[395367706,1764673145520,152.19,1.7e-05,2]
[395367707,1764673145981,152.19,1.9e-05,2]
[395367708,1764673146323,152.19,2e-05,2]
[395367709,1764673152011,230.22350894,8.578e-05,2]
[395367710,1764673159897,230.22350894,8.578e-05,2]
[395367711,1764673175312,230.22350894,8.578e-05,2]
[395367712,1764673183189,230.22350894,8.578e-05,2]
[395367713,1764673198504,230.22350894,8.578e-05,2]
[395367718,1764673206994,230.22350894,8.578e-05,2]
[395367720,1764673222006,230.22350894,8.578e-05,2]
[395367721,1764673230408,230.22350894,8.578e-05,2]
[395367726,1764673245624,230.22350894,8.578e-05,2]
[395367730,1764673253474,230.22350894,8.578e-05,2]
[395367731,1764673268743,230.22350894,8.578e-05,2]
[395367732,1764673276581,230.22350894,8.578e-05,2]
[395367733,1764673287760,230.22350894,8.578e-05,2]
[395367735,1764673300391,228.26656728,8.513e-05,2]
[395367738,1764673302984,269.193,8.578e-05,2]
[395367739,1764673305900,-228.26656728,8.599e-05,2]
[395367744,1764673315687,228.26656728,8.599e-05,2]
[395367745,1764673323571,228.26656728,8.599e-05,2]
[395367758,1764673338981,228.26656728,8.599e-05,2]
[395367764,1764673346827,228.26656728,8.599e-05,2]
[395367767,1764673362251,228.26656728,8.599e-05,2]
[395367768,1764673368583,861.33,0.000201,120]
[395367769,1764673370102,228.26656728,8.599e-05,2]
[395367771,1764673383079,745.66464855,0.0001111,3]
[395367772,1764673385886,301.48887437,8.576e-05,2]
[395367773,1764673393658,301.48887437,8.576e-05,2]
[395367774,1764673408991,301.48887437,8.576e-05,2]
[395367775,1764673417762,301.48887437,8.576e-05,2]
[395367776,1764673432963,301.48887437,8.576e-05,2]
[395367777,1764673440858,301.48887437,8.576e-05,2]
[395367779,1764673456123,301.48887437,8.576e-05,2]
[395367780,1764673464141,301.48887437,8.576e-05,2]
[395367781,1764673464714,-300.00749337,8.663e-05,2]